bitfinex/quotes_BTCUSD_20240605
["timestamp","ask_amount","ask_price","bid_price","bid_amount"]
[1717555223676,0.140839,71003.0,71002.0,0.01982566]
[1717555224127,0.140834,71006.0,71004.0,0.01982566]
[1717555224340,0.140835,71005.0,71004.0,0.01982566]
[1717555224542,0.140839,71003.0,71001.0,0.00982566]
[1717555224762,0.140839,71003.0,70999.0,0.26321329]
[1717555224763,0.140839,71003.0,71002.0,0.01982566]
[1717555225174,0.140843,71001.0,70999.0,0.27603895]
[1717555225392,0.140843,71001.0,71000.0,0.01982566]
[1717555226170,0.140843,71001.0,70999.0,0.25621329]
[1717555226379,0.140843,71001.0,70999.0,0.27603895]
[1717555226591,0.171,71010.0,71004.0,0.003]
[1717555227215,0.171,71010.0,71004.0,0.02282566]
[1717555227420,0.17117434,71010.0,71004.0,0.003]
[1717555227620,0.14084,71003.0,71001.0,0.01982566]
[1717555227826,0.14084,71003.0,71002.0,0.01982566]
[1717555228244,0.14084,71003.0,70999.0,0.26821329]
[1717555228454,0.31201934,71000.0,70999.0,0.02781329]
[1717555228681,1.34181827,71000.0,70999.0,0.02781329]
[1717555228922,1.54181827,71000.0,70999.0,0.02781329]
[1717555229138,0.42275534,70992.0,70991.0,0.002]
[1717555229365,0.73817427,70992.0,70991.0,0.002]
[1717555230503,0.56717427,70992.0,70991.0,0.002]
[1717555230716,0.74117427,70992.0,70991.0,0.002]
[1717555231161,0.14386,70992.0,70991.0,0.002]
[1717555231366,0.31486,70992.0,70991.0,0.002]
[1717555231568,0.31186,70992.0,70991.0,0.002]
[1717555232232,0.31586,70992.0,70991.0,0.002]
[1717555232432,0.31186,70992.0,70991.0,0.2383]
[1717555232751,0.31386,70992.0,70991.0,0.2383]
[1717555233148,0.31586,70992.0,70991.0,0.2383]
[1717555233355,0.31586,70992.0,70991.0,0.0826]
[1717555233577,0.31403434,70992.0,70991.0,0.002]
[1717555233772,0.74017427,70992.0,70991.0,0.002]
[1717555233986,0.74117427,70992.0,70991.0,0.002]
[1717555234204,1.01537427,70992.0,70991.0,0.002]
[1717555234452,1.44389527,70992.0,70991.0,0.002]
[1717555234852,1.44489527,70992.0,70991.0,0.002]
[1717555235286,1.44289527,70992.0,70991.0,0.002]
[1717555235832,1.24489527,70992.0,70991.0,0.002]
[1717555236062,1.24289527,70992.0,70991.0,0.002]
[1717555236266,1.45389527,70992.0,70991.0,0.002]
[1717555236448,1.44289527,70992.0,70991.0,0.002]
[1717555236579,1.44189527,70992.0,70991.0,0.002]
[1717555236818,1.45389527,70992.0,70991.0,0.002]
[1717555237019,1.45789527,70992.0,70991.0,0.002]
[1717555237447,1.45389527,70992.0,70991.0,0.002]
[1717555237895,1.46489527,70992.0,70991.0,0.003]
[1717555238566,1.26489527,70992.0,70991.0,0.003]
[1717555240020,1.25389527,70992.0,70991.0,0.002]
[1717555240185,1.44189527,70992.0,70991.0,0.002]
[1717555240389,2.25073414,70992.0,70991.0,0.003]
[1717555240592,2.21761627,70992.0,70991.0,0.003]
[1717555240797,2.22900685,70992.0,70991.0,0.002]
[1717555241020,2.22900685,70992.0,70971.0,0.002]
[1717555241021,0.140896,70974.0,70971.0,0.002]
[1717555241319,0.00017434,70975.0,70971.0,0.002]
[1717555241320,0.1409,70972.0,70971.0,0.002]
[1717555241526,0.14107434,70972.0,70971.0,0.002]
[1717555241944,0.76729427,70972.0,70971.0,0.002]
[1717555242188,0.88929427,70972.0,70971.0,0.002]
[1717555242468,1.32349527,70972.0,70971.0,0.002]
[1717555242716,1.52349527,70972.0,70971.0,0.002]
[1717555243600,1.53649527,70972.0,70971.0,0.002]
[1717555244041,1.52349527,70972.0,70971.0,0.002]
[1717555244708,1.53649527,70972.0,70971.0,0.003]
[1717555245119,0.42291134,70966.0,70965.0,0.009493]
[1717555245361,0.56733027,70966.0,70965.0,0.009493]
[1717555246675,1.00595527,70966.0,70965.0,0.009493]
[1717555247057,1.20595527,70966.0,70965.0,0.009493]
[1717555247297,1.21395527,70966.0,70965.0,0.010493]
[1717555247927,1.30595527,70966.0,70965.0,0.009493]
[1717555248366,1.10695527,70966.0,70965.0,0.010493]
[1717555248621,1.10695527,70966.0,70965.0,0.001]
[1717555248825,1.75568027,70966.0,70965.0,0.001]
[1717555249506,1.92988027,70966.0,70965.0,0.001]
[1717555249721,2.02988027,70966.0,70965.0,0.001]
[1717555250154,1.15259434,70960.0,70951.0,0.002]
[1717555250395,1.46801327,70960.0,70951.0,0.002]
[1717555250610,1.46801327,70960.0,70942.0,0.01432029]
[1717555250611,0.1,70943.0,70942.0,0.01432029]
[1717555250825,0.83846727,70943.0,70942.0,0.01432029]
[1717555251031,0.83846727,70943.0,70942.0,0.24392029]
[1717555251032,1.12020893,70943.0,70942.0,0.24392029]
[1717555251284,1.12038327,70943.0,70942.0,0.09002029]
[1717555251490,1.12038327,70943.0,70942.0,0.01432029]
[1717555251708,1.12020893,70943.0,70942.0,0.01432029]
[1717555251942,1.12038327,70943.0,70942.0,0.01432029]
[1717555253051,1.12020893,70943.0,70942.0,0.01432029]
[1717555253286,1.12038327,70943.0,70942.0,0.01432029]
[1717555253501,1.12020893,70943.0,70942.0,0.01432029]
[1717555253771,1.13638327,70943.0,70942.0,0.01432029]
[1717555254393,1.12938327,70943.0,70942.0,0.01432029]
[1717555254596,1.13038327,70943.0,70942.0,0.01432029]
[1717555254820,1.13020893,70943.0,70942.0,0.01432029]
[1717555255076,1.12920893,70943.0,70942.0,0.01432029]
[1717555255711,1.12020893,70943.0,70942.0,0.01432029]
[1717555255927,0.422892,70940.0,70939.0,0.16338199]
[1717555256110,0.56731093,70940.0,70939.0,0.16338199]
[1717555257381,0.57131093,70940.0,70939.0,0.16338199]
[1717555257585,0.57631093,70940.0,70939.0,0.16338199]
[1717555258343,0.57631093,70940.0,70939.0,0.18320765]
[1717555258344,0.009,70940.0,70939.0,0.18320765]
[1717555258558,0.149964,70940.0,70939.0,0.25940228]
[1717555258793,0.149964,70940.0,70939.0,0.27922794]
[1717555259410,0.004,70940.0,70939.0,0.27922794]
[1717555259648,0.171,70954.0,70948.0,0.01982566]
[1717555259890,0.140946,70949.0,70948.0,0.01982566]
[1717555260340,0.311937,70954.0,70953.0,0.00982566]
[1717555260576,0.056419,70961.0,70956.0,0.01982566]
[1717555260808,0.14093,70958.0,70957.0,0.01982566]
[1717555261016,0.171,70963.0,70956.0,0.01982566]
[1717555261017,0.140931,70957.0,70956.0,0.01982566]
[1717555261235,0.140932,70956.0,70954.0,0.01432029]
[1717555261734,0.140932,70956.0,70955.0,0.01982566]
[1717555262147,0.056415,70963.0,70962.0,0.01982566]
[1717555262394,0.056415,70963.0,70962.0,0.09712566]
[1717555262395,0.140918,70963.0,70962.0,0.09712566]
[1717555262615,0.01715213,70966.0,70965.0,0.01982566]
[1717555262845,0.01715213,70966.0,70965.0,0.1563]
[1717555263101,0.140912,70966.0,70965.0,0.1563]
[1717555263740,0.140934,70955.0,70954.0,0.01432029]
[1717555264002,0.311934,70955.0,70954.0,0.01432029]
[1717555264200,0.31210834,70955.0,70954.0,0.01432029]
[1717555264445,0.98619527,70955.0,70954.0,0.01432029]
[1717555264664,0.98619527,70955.0,70939.0,0.24548199]
[1717555264665,0.140963,70941.0,70939.0,0.24548199]
[1717555265341,0.140964,70940.0,70939.0,0.24548199]
[1717555265779,0.13917944,70940.0,70939.0,0.26530765]
[1717555266000,0.311955,70945.0,70944.0,0.01982566]
[1717555266232,0.140955,70945.0,70944.0,0.01982566]
[1717555266453,0.29221893,70954.0,70953.0,0.09752566]
[1717555266454,0.140936,70954.0,70953.0,0.09752566]
[1717555266685,0.140936,70954.0,70953.0,0.25142566]
[1717555266886,0.171,70959.0,70953.0,0.25142566]
[1717555266887,0.01705061,70958.0,70953.0,0.25142566]
[1717555267113,0.1,70964.0,70953.0,0.2316]
[1717555267114,0.140936,70954.0,70953.0,0.2316]
[1717555267337,0.140952,70946.0,70945.0,0.2316]
[1717555267521,0.140952,70946.0,70942.0,0.1539]
[1717555267522,0.140958,70943.0,70942.0,0.1539]
[1717555267949,0.281871,70955.0,70942.0,0.1539]
[1717555268194,0.140942,70951.0,70943.0,0.078]
[1717555268395,0.00017434,70952.0,70943.0,0.078]
[1717555268606,0.00017434,70952.0,70939.0,0.00948199]
[1717555268607,0.14113834,70940.0,70939.0,0.00948199]
[1717555268829,0.140964,70940.0,70939.0,0.00948199]
[1717555270424,0.140964,70940.0,70939.0,0.01048199]
[1717555270828,0.140964,70940.0,70939.0,0.00948199]
[1717555271057,0.143964,70940.0,70939.0,0.00948199]
[1717555271272,0.146964,70940.0,70939.0,0.00948199]
[1717555271479,0.143964,70940.0,70939.0,0.02930765]
[1717555271622,0.147964,70940.0,70939.0,0.02930765]
[1717555271834,0.007,70940.0,70939.0,0.26950765]
[1717555272043,0.003,70940.0,70939.0,0.26950765]
[1717555273040,0.140959,70943.0,70939.0,0.26950765]
[1717555273263,0.140959,70943.0,70942.0,0.01982566]
[1717555273666,0.140959,70943.0,70941.0,0.01982566]
[1717555274112,0.140959,70943.0,70942.0,0.01982566]
[1717555274273,0.001,70943.0,70942.0,0.01982566]
[1717555274707,0.001,70943.0,70942.0,0.02082566]
[1717555275161,0.001,70943.0,70942.0,0.24902566]
[1717555275311,0.001,70943.0,70942.0,0.25902566]
[1717555275857,0.140949,70948.0,70947.0,0.01982566]
[1717555276250,0.140941,70952.0,70951.0,0.00982566]
[1717555276481,0.140941,70952.0,70951.0,0.01982566]
[1717555276717,0.140941,70952.0,70943.0,0.03115339]
[1717555276718,0.140942,70951.0,70950.0,0.01982566]
[1717555277365,0.140944,70950.0,70949.0,0.01982566]
[1717555279762,0.140944,70950.0,70942.0,0.2282]
[1717555279763,0.01709019,70959.0,70956.0,0.01982566]
[1717555279966,0.140926,70959.0,70958.0,0.01982566]
[1717555280323,0.21861893,70959.0,70945.0,0.10255339]
[1717555280550,0.00017434,70957.0,70945.0,0.0814]
[1717555280953,0.00017434,70957.0,70956.0,0.001]
[1717555280954,0.42645427,70957.0,70956.0,0.001]
[1717555281353,0.56738427,70957.0,70956.0,0.001]
[1717555281723,0.56838427,70957.0,70956.0,0.001]
[1717555282084,0.56820993,70957.0,70956.0,0.001]
[1717555282853,0.140936,70954.0,70953.0,0.01982566]
[1717555284480,0.140938,70953.0,70952.0,0.01982566]
[1717555284905,0.002,70954.0,70953.0,0.17322566]
[1717555285124,0.002,70954.0,70953.0,0.26552566]
[1717555285312,0.002,70954.0,70953.0,0.26984595]
[1717555285872,0.002,70954.0,70953.0,0.01432029]
[1717555285873,0.28752927,70954.0,70953.0,0.01432029]
[1717555286076,0.56922693,70954.0,70953.0,0.01432029]
[1717555286478,0.57022693,70954.0,70953.0,0.01432029]
[1717555286687,0.56922693,70954.0,70953.0,0.01432029]
[1717555287059,0.56822693,70954.0,70953.0,0.01832029]
[1717555287267,0.56822693,70954.0,70953.0,0.01432029]
[1717555287696,0.57022693,70954.0,70953.0,0.01432029]
[1717555288504,0.57222693,70954.0,70953.0,0.01432029]
[1717555290032,0.73922693,70954.0,70953.0,0.01432029]
[1717555290234,0.140948,70948.0,70947.0,0.01982566]
[1717555290449,0.140948,70948.0,70942.0,0.1534]
[1717555290450,0.00017434,70953.0,70945.0,0.03414595]
[1717555290757,0.14441893,70952.0,70946.0,0.01982566]
[1717555291564,0.14441893,70952.0,70947.0,0.01982566]
[1717555291793,0.001,70948.0,70947.0,0.02582566]
[1717555291971,0.001,70948.0,70947.0,0.006]
[1717555292961,0.14095,70947.0,70946.0,0.01982566]
[1717555293188,0.14441893,70952.0,70942.0,0.17322566]
[1717555293400,0.14641893,70952.0,70946.0,0.011]
[1717555293711,0.14541893,70952.0,70946.0,0.007]
[1717555293905,0.14441893,70952.0,70942.0,0.17322566]
[1717555294087,0.001,70947.0,70946.0,0.004]
[1717555294308,0.75362434,70947.0,70946.0,0.011]
[1717555294488,0.75362434,70947.0,70946.0,0.007]
[1717555294741,0.140964,70940.0,70939.0,0.00948199]
[1717555295079,0.307964,70940.0,70939.0,0.00948199]
[1717555295524,0.30813834,70940.0,70939.0,0.00948199]
[1717555295780,0.589892,70940.0,70939.0,0.00948199]
[1717555296153,0.59006634,70940.0,70939.0,0.00948199]
[1717555296775,0.589892,70940.0,70939.0,0.00948199]
[1717555296979,0.59006634,70940.0,70939.0,0.00948199]
[1717555297712,0.59006634,70940.0,70939.0,0.01248199]
[1717555298127,0.59306634,70940.0,70939.0,0.01248199]
[1717555298331,0.59306634,70940.0,70939.0,0.00948199]
[1717555298764,0.59606634,70940.0,70939.0,0.00948199]
[1717555300055,0.59306634,70940.0,70939.0,0.00948199]
[1717555300172,0.59006634,70940.0,70939.0,0.00948199]
[1717555301448,1.02723893,70940.0,70939.0,0.00948199]
[1717555302695,1.02741327,70940.0,70939.0,0.00948199]
[1717555303463,1.89114127,70940.0,70939.0,0.00948199]
[1717555303646,1.99114127,70940.0,70939.0,1e-08]
[1717555303857,2.01449453,70940.0,70939.0,1e-08]
[1717555304266,2.23178156,70940.0,70939.0,1e-08]
[1717555304669,2.03178156,70940.0,70939.0,1e-08]
[1717555304926,2.23178156,70940.0,70939.0,1e-08]
[1717555305290,2.03178156,70940.0,70939.0,1e-08]
[1717555305496,2.23178156,70940.0,70939.0,1e-08]
[1717555307412,2.2084283,70940.0,70939.0,1e-08]
[1717555307707,2.2179103,70940.0,70939.0,1e-08]
[1717555309717,2.0179103,70940.0,70939.0,1e-08]
[1717555310814,1.9437103,70940.0,70939.0,1e-08]
[1717555311020,1.5169103,70940.0,70939.0,1e-08]
[1717555312016,0.98700796,70940.0,70939.0,1e-08]
[1717555312222,1.11279726,70940.0,70939.0,1e-08]
[1717555313312,1.01279726,70940.0,70939.0,1e-08]
[1717555313519,1.08700796,70940.0,70939.0,1e-08]
[1717555313701,0.98700796,70940.0,70939.0,1e-08]
[1717555313950,1.08700796,70940.0,70939.0,1e-08]
[1717555314379,1.0880423,70940.0,70939.0,1e-08]
[1717555315567,1.3358423,70940.0,70939.0,1e-08]
[1717555315820,1.6177703,70940.0,70939.0,1e-08]
[1717555321369,1.6177703,70940.0,70939.0,0.00032368]
[1717555323314,2.0541703,70940.0,70939.0,0.00032368]
[1717555323593,0.80507434,70932.0,70931.0,0.002]
[1717555323814,1.21649327,70932.0,70931.0,0.002]
[1717555325645,1.21649327,70932.0,70931.0,0.007]
[1717555326179,1.21749327,70932.0,70931.0,0.008]
[1717555326498,1.21749327,70932.0,70931.0,0.003]
[1717555326869,1.22049327,70932.0,70931.0,0.003]
[1717555327075,1.21949327,70932.0,70931.0,0.002]
[1717555327280,1.22449327,70932.0,70931.0,0.002]
[1717555327637,1.21949327,70932.0,70931.0,0.002]
[1717555327816,1.32649327,70932.0,70931.0,0.002]
[1717555328017,1.60845327,70932.0,70931.0,0.002]
[1717555328419,1.60545327,70932.0,70931.0,0.002]
[1717555328845,1.61145327,70932.0,70931.0,0.003]
[1717555329047,1.61127893,70932.0,70931.0,0.003]
[1717555329242,1.60527893,70932.0,70931.0,0.002]
[1717555329444,1.60527893,70932.0,70914.0,0.01]
[1717555329671,0.281997,70923.0,70914.0,0.02]
[1717555329887,0.167,70926.0,70914.0,0.02]
[1717555330136,0.140999,70923.0,70915.0,0.02]
[1717555330252,0.141001,70922.0,70918.0,0.02]
[1717555331319,0.142001,70922.0,70918.0,0.021]
[1717555331580,0.001,70922.0,70921.0,0.21322924]
[1717555331787,0.14097,70937.0,70930.0,0.02]
[1717555332000,0.01666375,70935.0,70926.0,0.02]
[1717555332171,0.00086,70940.0,70926.0,0.02]
[1717555332659,0.00086,70940.0,70932.0,0.2426]
[1717555333034,0.00086,70940.0,70930.0,0.02]
[1717555333035,0.00086,70940.0,70930.0,0.2426]
[1717555333165,0.00086,70940.0,70929.0,0.02]
[1717555333367,0.00086,70940.0,70933.0,0.2416]
[1717555333578,0.140966,70939.0,70934.0,0.2416]
[1717555333776,0.001,70937.0,70934.0,0.2416]
[1717555334990,0.140966,70939.0,70934.0,0.2416]
[1717555336259,0.141966,70939.0,70934.0,0.2586]
[1717555336458,0.001,70937.0,70934.0,0.2586]
[1717555336603,0.001,70937.0,70935.0,0.02]
[1717555336809,0.001,70937.0,70936.0,0.2445]
[1717555337256,0.001,70939.0,70936.0,0.2445]
[1717555337257,0.001,70939.0,70936.0,0.02]
[1717555337458,0.001,70939.0,70938.0,0.2445]
[1717555338280,0.00086,70940.0,70938.0,0.2445]
[1717555339348,0.00086,70940.0,70938.0,0.2465]
[1717555339763,0.00086,70940.0,70938.0,0.2485]
[1717555340110,0.00086,70940.0,70938.0,0.2465]
[1717555340344,0.00086,70940.0,70938.0,0.2485]
[1717555343382,0.00086,70940.0,70938.0,0.2685]
[1717555344107,0.00086,70940.0,70938.0,0.2485]
[1717555344276,0.141824,70940.0,70938.0,0.2485]
[1717555344536,0.00086,70940.0,70938.0,0.2485]
[1717555345898,0.00086,70940.0,70938.0,0.0834]
[1717555347693,0.00086,70940.0,70938.0,0.004]
[1717555347909,0.83644517,70939.0,70938.0,0.004]
[1717555348140,0.98944517,70939.0,70938.0,0.004]
[1717555348329,1.37137717,70939.0,70938.0,0.004]
[1717555348560,1.57137717,70939.0,70938.0,0.002]
[1717555348773,1.37137717,70939.0,70938.0,0.002]
[1717555349222,1.57137717,70939.0,70938.0,0.002]
[1717555349431,0.140992,70926.0,70925.0,0.01432029]
[1717555349953,0.140992,70926.0,70925.0,0.17732029]
[1717555350618,0.30541093,70926.0,70925.0,0.01432029]
[1717555350858,0.47763917,70926.0,70925.0,0.01432029]
[1717555351072,0.47763917,70926.0,70922.0,0.000946]
[1717555351073,0.260997,70923.0,70922.0,0.000946]
[1717555351291,0.78741093,70923.0,70922.0,0.000946]
[1717555351526,0.95441093,70923.0,70922.0,0.000946]
[1717555351748,1.15441093,70923.0,70922.0,0.000946]
[1717555352692,1.16841093,70923.0,70922.0,0.001946]
[1717555352917,1.45040593,70923.0,70922.0,0.001946]
[1717555353144,1.53640593,70923.0,70922.0,0.000946]
[1717555353365,0.141019,70912.0,70904.0,0.01432029]
[1717555353594,0.308019,70912.0,70904.0,0.01432029]
[1717555353805,0.328019,70912.0,70904.0,0.01432029]
[1717555354473,0.308019,70912.0,70904.0,0.01432029]
[1717555354688,0.45543793,70912.0,70904.0,0.01432029]
[1717555354892,0.47543793,70912.0,70904.0,0.01432029]
[1717555355586,0.47843793,70912.0,70904.0,0.01432029]
[1717555355803,0.45843793,70912.0,70904.0,0.01432029]
[1717555356047,0.47243793,70912.0,70904.0,0.01432029]
[1717555356251,0.48043793,70912.0,70904.0,0.01432029]
[1717555356480,0.75847693,70912.0,70904.0,0.01432029]
[1717555356896,0.76547693,70912.0,70904.0,0.01432029]
[1717555357270,0.75847693,70912.0,70904.0,0.01432029]
[1717555357433,0.75947693,70912.0,70904.0,0.01432029]
[1717555357855,0.76147693,70912.0,70904.0,0.01432029]
[1717555358238,0.74147693,70912.0,70904.0,0.01432029]
[1717555358704,0.74147693,70912.0,70901.0,0.1595]
[1717555359299,0.74247693,70912.0,70901.0,0.1595]
[1717555359502,0.76147693,70912.0,70901.0,0.1595]
[1717555359947,0.76947693,70912.0,70901.0,0.1595]
[1717555361754,0.76247693,70912.0,70901.0,0.1595]
[1717555362154,0.77147693,70912.0,70901.0,0.1595]
[1717555362384,0.76347693,70912.0,70901.0,0.1595]
[1717555362585,0.7988737,70912.0,70901.0,0.1595]
[1717555362971,0.7788737,70912.0,70901.0,0.1595]
[1717555364186,0.7988737,70912.0,70901.0,0.1595]
[1717555364381,0.81587767,70912.0,70901.0,0.1595]
[1717555365042,0.79587767,70912.0,70901.0,0.1595]
[1717555365401,0.17702297,70912.0,70911.0,0.1622]
[1717555366270,0.17702297,70912.0,70911.0,0.242]
[1717555366918,0.019,70912.0,70911.0,0.262]
[1717555367506,0.019,70912.0,70911.0,0.403021]
[1717555367507,0.009,70912.0,70911.0,0.403021]
[1717555367752,0.140996,70924.0,70917.0,0.2408]
[1717555367975,0.140996,70924.0,70917.0,0.25512029]
[1717555369044,0.167,70932.0,70917.0,0.25512029]
[1717555369219,0.141,70922.0,70917.0,0.25512029]
[1717555370145,0.141,70922.0,70917.0,0.25812029]
[1717555370347,0.141,70922.0,70917.0,0.25512029]
[1717555370559,0.141,70922.0,70917.0,0.26012029]
[1717555370764,0.141,70922.0,70917.0,0.26312029]
[1717555370765,0.142,70922.0,70917.0,0.26312029]
[1717555370969,0.142,70922.0,70917.0,0.25812029]
[1717555371544,0.143,70922.0,70918.0,0.02]
[1717555371771,0.002,70922.0,70920.0,0.02]
[1717555372198,0.002,70922.0,70921.0,0.02]
[1717555372528,0.001,70922.0,70921.0,0.2598]
[1717555372741,0.002,70922.0,70921.0,0.2598]
[1717555373120,0.001,70922.0,70921.0,0.2598]
[1717555373368,0.001,70922.0,70921.0,0.2608]
[1717555373572,0.002,70922.0,70921.0,0.2608]
[1717555373942,0.001,70922.0,70921.0,0.26101618]
[1717555374372,0.001,70922.0,70921.0,0.26301618]
[1717555375356,0.001,70922.0,70921.0,0.40401718]
[1717555376287,0.001,70922.0,70921.0,0.40201718]
[1717555376718,0.01705307,70932.0,70926.0,0.02]
[1717555377081,0.140976,70934.0,70926.0,0.02]
[1717555377493,0.140976,70934.0,70925.0,0.2395]
[1717555377877,0.140978,70933.0,70925.0,0.2395]
[1717555378014,0.140978,70933.0,70926.0,0.005]
[1717555378015,0.001,70932.0,70926.0,0.005]
[1717555379050,0.001,70932.0,70926.0,0.025]
[1717555379261,0.002,70932.0,70926.0,0.029]
[1717555379473,0.001,70932.0,70930.0,0.02]
[1717555379673,0.001,70932.0,70931.0,0.2665]
[1717555380086,0.001,70932.0,70931.0,0.407482]
[1717555380519,0.01678395,70938.0,70932.0,0.02]
[1717555380721,0.140962,70941.0,70933.0,0.02]
[1717555381221,0.140962,70941.0,70932.0,0.01432029]
[1717555381432,0.140962,70941.0,70932.0,0.03432029]
[1717555381652,0.140962,70941.0,70932.0,0.01432029]
[1717555381883,0.140962,70941.0,70934.0,0.02]
[1717555382055,0.140962,70941.0,70932.0,0.01432029]
[1717555382255,0.140974,70935.0,70932.0,0.01432029]
[1717555382660,0.140976,70934.0,70932.0,0.01832029]
[1717555383086,0.140976,70934.0,70933.0,0.003]
[1717555383288,0.140976,70934.0,70932.0,0.01432029]
[1717555383485,0.140976,70934.0,70932.0,0.01932029]
[1717555383688,0.140976,70934.0,70932.0,0.02232029]
[1717555383927,0.140976,70934.0,70932.0,0.01932029]
[1717555384105,0.140976,70934.0,70932.0,0.01432029]
[1717555384261,0.141976,70934.0,70933.0,0.008]
[1717555384462,0.142976,70934.0,70933.0,0.008]
[1717555384688,0.142976,70934.0,70933.0,0.005]
[1717555385103,0.002,70934.0,70933.0,0.005]
[1717555385358,0.002,70934.0,70933.0,0.025]
[1717555385582,0.002,70934.0,70933.0,0.405578]
[1717555385781,0.001,70934.0,70933.0,0.400578]
[1717555386191,0.002,70934.0,70933.0,0.400578]
[1717555386801,0.01791471,70940.0,70939.0,0.02]
[1717555387211,0.00086,70940.0,70939.0,0.403266]
[1717555388506,0.00086,70940.0,70939.0,0.54768493]
[1717555388850,0.00086,70940.0,70939.0,1.02961693]
[1717555389068,0.00086,70940.0,70939.0,1.12983311]
[1717555389285,0.00086,70940.0,70939.0,1.5347651]
[1717555389940,0.00186,70940.0,70939.0,1.5477651]
[1717555390151,0.00286,70940.0,70939.0,1.5477651]
[1717555390355,0.00186,70940.0,70939.0,1.5477651]
[1717555390682,0.00286,70940.0,70939.0,1.5577651]
[1717555391492,0.01656241,70968.0,70961.0,0.02]
[1717555391710,0.43336945,70963.0,70962.0,0.2534]
[1717555391926,0.002,70969.0,70962.0,0.2534]
[1717555391927,0.002,70969.0,70962.0,0.25361617]
[1717555392363,0.002,70969.0,70963.0,0.02]
[1717555392566,0.002,70969.0,70963.0,0.02021617]
[1717555392774,0.001,70968.0,70963.0,0.02021617]
[1717555393204,0.002,70969.0,70963.0,0.02585254]
[1717555393411,0.002,70969.0,70965.0,0.02]
[1717555393626,0.002,70969.0,70965.0,0.02021617]
[1717555393840,0.002,70969.0,70966.0,0.02]
[1717555394088,0.002,70969.0,70968.0,0.02]
[1717555394308,0.002,70969.0,70968.0,0.39632417]
[1717555394550,0.002,70969.0,70968.0,0.54074309]
[1717555395200,0.002,70969.0,70968.0,0.82256009]
[1717555395460,0.002,70969.0,70968.0,1.03556009]
[1717555395684,0.002,70969.0,70968.0,1.13556008]
[1717555396531,0.002,70969.0,70968.0,1.14956008]
[1717555396696,0.002,70969.0,70968.0,1.14956007]
[1717555397100,0.002,70969.0,70968.0,1.13556007]
[1717555397319,0.003,70969.0,70968.0,1.14956007]
[1717555397495,0.002,70969.0,70968.0,1.14956007]
[1717555397891,0.002,70969.0,70968.0,0.96356007]
[1717555398496,0.002,70969.0,70968.0,1.16356007]
[1717555398956,0.000778,70969.0,70968.0,1.16356007]
[1717555399213,0.000778,70969.0,70968.0,1.13556006]
[1717555399627,0.000778,70969.0,70968.0,1.14956006]
[1717555400277,0.000778,70969.0,70968.0,1.13556006]
[1717555400522,0.000778,70969.0,70968.0,1.41737706]
[1717555400705,0.000778,70969.0,70968.0,1.44537706]
[1717555401013,0.000778,70969.0,70968.0,1.53137706]
[1717555401232,0.000778,70969.0,70968.0,1.53137705]
[1717555401437,0.000778,70969.0,70968.0,1.54537705]
[1717555403267,0.000778,70969.0,70968.0,1.54537704]
[1717555409206,0.000778,70969.0,70968.0,1.54537703]
[1717555409661,0.000778,70969.0,70968.0,1.92719403]
[1717555410049,0.002,70989.0,70988.0,0.150868]
[1717555410257,0.002,70989.0,70988.0,0.54972332]
[1717555411678,0.002,70989.0,70988.0,0.55972332]
[1717555412509,0.002,70989.0,70988.0,0.56872332]
[1717555413772,0.002,70989.0,70988.0,0.56872331]
[1717555414120,0.002,70989.0,70988.0,0.85046031]
[1717555414320,0.002,70989.0,70988.0,0.87346031]
[1717555414757,0.002,70989.0,70988.0,1.07346031]
[1717555415158,0.002,70989.0,70988.0,1.35519731]
[1717555415366,0.002,70989.0,70988.0,1.44087702]
[1717555415582,0.002,70989.0,70988.0,1.44087701]
[1717555415788,0.002,70989.0,70988.0,1.43187701]
[1717555416165,0.002,70989.0,70988.0,1.44587701]
[1717555416800,0.002,70989.0,70988.0,1.43587701]
[1717555416997,0.002,70989.0,70988.0,1.44987701]
[1717555418075,0.002,70989.0,70988.0,1.24987701]
[1717555418419,0.002,70989.0,70988.0,0.96814001]
[1717555419543,0.002,70989.0,70988.0,0.96814]
[1717555421481,0.002,70989.0,70988.0,0.97870524]
[1717555421798,0.002,70989.0,70988.0,0.96814]
[1717555422406,0.002,70989.0,70988.0,0.9787054]
[1717555422618,0.002,70989.0,70988.0,1.1787054]
[1717555423163,0.002,70989.0,70988.0,0.9787054]
[1717555423362,0.002,70989.0,70988.0,1.16814]
[1717555424588,0.002,70989.0,70988.0,0.96814]
[1717555425045,0.002,70989.0,70988.0,1.16813999]
[1717555425217,0.002,70989.0,70988.0,0.96813999]
[1717555429174,0.002,70989.0,70988.0,0.68640299]
[1717555429376,0.002,70989.0,70988.0,0.81063999]
[1717555431145,0.002,70989.0,70988.0,1.01063999]
[1717555431750,0.002,70989.0,70988.0,0.81063999]
[1717555433358,0.002,70989.0,70988.0,0.89427294]
[1717555433707,0.002,70989.0,70988.0,1.09427294]
[1717555434115,0.002,70989.0,70988.0,0.89427293]
[1717555434321,0.002,70989.0,70988.0,0.81063998]
[1717555434966,0.002,70989.0,70988.0,0.89464079]
[1717555435329,0.002,70989.0,70988.0,0.81063998]
[1717555436200,0.002,70989.0,70988.0,1.07733998]
[1717555436420,0.002,70989.0,70988.0,1.18188117]
[1717555436625,0.002,70989.0,70988.0,1.45907698]
[1717555437322,0.002,70989.0,70988.0,1.58525216]
[1717555437542,0.002,70989.0,70988.0,1.72195216]
[1717555437950,0.002,70989.0,70988.0,1.70795216]
[1717555438148,0.002,70989.0,70988.0,2.00368916]
[1717555438360,0.002,70989.0,70988.0,1.87751398]
[1717555438993,0.002,70989.0,70988.0,1.86351397]
[1717555439486,0.002,70989.0,70988.0,1.87751397]
[1717555439941,0.002,70989.0,70988.0,1.98221397]
[1717555440589,0.002,70989.0,70988.0,2.16851652]